bitfinex/quotes_ETHUSD_20250324
["timestamp","ask_amount","ask_price","bid_price","bid_amount"]
[1742837806532,5.9570251,2091.9,2091.5,25.7413]
[1742837806715,4.78065,2091.8,2091.6,4.564]
[1742837807433,4.7808,2091.7,2091.6,4.564]
[1742837808730,4.78065,2091.8,2091.6,4.564]
[1742837811002,5.57605,2091.8,2091.6,4.564]
[1742837811208,9.56139,2091.8,2091.6,4.564]
[1742837811404,4.78065,2091.8,2091.6,4.564]
[1742837811601,9.56141,2091.8,2091.6,4.564]
[1742837811805,4.7808,2091.7,2091.6,4.564]
[1742837812433,4.78064,2091.8,2091.6,4.564]
[1742837812734,9.56137,2091.8,2091.6,4.564]
[1742837813342,4.78064,2091.8,2091.6,4.564]
[1742837813502,9.5614,2091.8,2091.6,4.564]
[1742837814133,4.78081,2091.7,2091.4,30.05135]
[1742837814440,4.78081,2091.7,2091.5,4.564]
[1742837817443,4.78037,2091.9,2091.6,5.24125]
[1742837817614,5.59423,2092.0,2091.6,5.24125]
[1742837817615,4.78013,2092.0,2091.6,5.24125]
[1742837818321,4.78036,2091.9,2091.6,5.24125]
[1742837818542,10.9399,2092.1,2091.7,4.82858338]
[1742837818851,10.9399,2092.1,2091.7,4.78078]
[1742837819041,4.78011,2092.0,2091.7,4.78078]
[1742837819410,4.78011,2092.0,2091.6,5.24131]
[1742837819607,4.78011,2092.0,2091.6,10.02223]
[1742837819826,4.78011,2092.0,2091.6,5.24122]
[1742837820347,4.78011,2092.0,2091.6,30.51122]
[1742837820549,4.78011,2092.0,2091.7,4.78072]
[1742837820727,4.78011,2092.0,2091.6,30.51122]
[1742837820934,4.78048,2091.9,2091.7,4.563]
[1742837821136,4.78057,2091.8,2091.7,4.563]
[1742837821523,4.78048,2091.9,2091.7,4.563]
[1742837821957,9.56098,2091.9,2091.7,4.563]
[1742837822124,4.78057,2091.8,2091.7,4.563]
[1742837824557,5.55697,2091.8,2091.7,4.563]
[1742837825252,5.55697,2091.8,2091.4,0.4603]
[1742837825253,5.55697,2091.8,2091.4,4.78145]
[1742837825472,0.7764,2091.8,2091.5,4.563]
[1742837825639,4.78092,2091.7,2091.5,4.563]
[1742837825840,4.78092,2091.7,2091.3,30.05163]
[1742837825841,4.78102,2091.6,2091.3,25.27]
[1742837826152,4.78111,2091.6,2091.4,4.563]
[1742837826351,9.56233,2091.6,2091.4,4.563]
[1742837826652,4.78111,2091.6,2091.4,4.563]
[1742837826860,4.78148,2091.4,2091.3,25.27]
[1742837827023,5.60658,2091.4,2091.3,25.27]
[1742837827222,5.60658,2091.4,2091.3,29.833]
[1742837827757,4.78125,2091.5,2091.3,29.833]
[1742837828458,9.56223,2091.6,2091.3,29.833]
[1742837828637,4.78127,2091.5,2091.3,29.833]
[1742837828844,4.78148,2091.4,2091.3,29.833]
[1742837829337,6.298368,2091.4,2091.3,29.833]
[1742837829857,9.298368,2091.4,2091.3,29.833]
[1742837830374,9.848368,2091.4,2091.3,29.833]
[1742837830867,10.673468,2091.4,2091.3,29.833]
[1742837834377,10.673468,2091.4,2091.3,4.563]
[1742837834539,4.783,2090.8,2090.6,0.4603]
[1742837834739,4.783,2090.8,2090.7,4.564]
[1742837834981,0.7525,2091.1,2090.5,25.276]
[1742837835205,4.78281,2090.9,2090.7,4.564]
[1742837835866,10.94206,2091.2,2090.7,9.80726]
[1742837836065,10.94206,2091.2,2090.9,4.78261]
[1742837836273,6.16,2091.2,2090.9,4.78261]
[1742837836870,6.16,2091.2,2090.9,4.7825]
[1742837837074,6.16,2091.2,2091.1,4.78217]
[1742837837271,5.58275,2091.7,2091.1,0.4603]
[1742837837463,4.78097,2091.7,2091.2,9.3458]
[1742837837863,4.78104,2091.6,2091.2,9.3458]
[1742837838086,4.78104,2091.6,2091.2,9.34577]
[1742837839493,9.56226,2091.6,2091.2,9.34577]
[1742837840386,9.56219,2091.6,2091.2,9.34577]
[1742837840699,4.78126,2091.5,2091.2,9.34577]
[1742837841474,4.78126,2091.5,2091.2,4.564]
[1742837842185,4.78161,2091.4,2091.1,25.276]
[1742837842383,4.78159,2091.4,2091.3,4.563]
[1742837842575,4.78126,2091.5,2091.3,4.563]
[1742837846302,4.78148,2091.4,2091.3,4.563]
[1742837846902,4.78132,2091.5,2091.3,4.563]
[1742837847475,0.55,2091.6,2091.3,4.563]
[1742837847676,0.8055,2091.7,2091.3,4.563]
[1742837847677,4.78093,2091.7,2091.3,4.563]
[1742837847878,9.56192,2091.7,2091.3,9.34462]
[1742837848077,4.78093,2091.7,2091.3,9.34462]
[1742837848587,7.78063,2091.8,2091.4,4.78138]
[1742837849006,12.56138,2091.8,2091.4,4.78138]
[1742837849309,4.7808,2091.7,2091.4,4.78138]
[1742837849811,4.7808,2091.7,2091.3,9.34464]
[1742837850015,4.78112,2091.6,2091.3,4.563]
[1742837851380,4.78112,2091.6,2091.3,9.34469]
[1742837851694,4.78112,2091.6,2091.3,4.563]
[1742837853714,4.78112,2091.6,2091.3,9.34469]
[1742837854017,4.78112,2091.6,2091.3,4.563]
[1742837854477,4.7814,2091.5,2091.4,4.563]
[1742837854684,4.78179,2091.3,2091.1,25.276]
[1742837854886,4.78179,2091.3,2091.2,4.563]
[1742837855178,4.78179,2091.3,2091.1,25.276]
[1742837855179,10.34053,2091.3,2091.1,25.276]
[1742837855409,10.34053,2091.3,2091.2,4.563]
[1742837855807,4.78194,2091.2,2091.1,25.276]
[1742837856116,4.78194,2091.2,2091.1,29.839]
[1742837856424,4.78194,2091.2,2091.1,25.276]
[1742837856616,4.78194,2091.2,2091.1,29.838]
[1742837859213,6.22396459,2091.3,2091.1,29.838]
[1742837859401,10.94165,2091.4,2091.1,29.838]
[1742837859713,4.78165,2091.4,2091.1,29.838]
[1742837860013,4.78165,2091.4,2091.1,34.62012]
[1742837860231,3.0,2091.4,2091.1,34.62004]
[1742837860391,4.78128,2091.5,2091.1,34.62004]
[1742837860591,4.78149,2091.4,2091.1,34.62004]
[1742837860838,7.78132,2091.5,2091.1,34.62004]
[1742837861036,4.78164,2091.4,2091.1,29.838]
[1742837861214,7.78132,2091.5,2091.1,34.62016]
[1742837861517,3.0,2091.5,2091.2,5.24218]
[1742837861719,6.16,2091.6,2091.3,4.78152]
[1742837861900,6.16,2091.6,2091.3,4.78155]
[1742837862287,6.16,2091.6,2091.4,4.78142]
[1742837862909,6.16,2091.6,2091.3,4.78165]
[1742837863594,6.16,2091.6,2091.4,4.78148]
[1742837863997,6.16,2091.6,2091.3,4.78165]
[1742837865525,5.57811,2091.6,2091.2,5.24224]
[1742837865724,0.797,2091.6,2091.3,4.7817]
[1742837866294,0.797,2091.6,2091.2,5.24224]
[1742837866512,4.78134,2091.5,2091.1,34.62016]
[1742837866691,9.56274,2091.5,2091.1,34.62012]
[1742837866895,4.78134,2091.5,2091.1,34.62012]
[1742837867090,4.78134,2091.5,2091.1,39.4021]
[1742837867306,7.78103,2091.6,2091.2,4.78177]
[1742837867620,4.78128,2091.5,2091.1,34.61998]
[1742837867831,4.78148,2091.4,2091.1,29.838]
[1742837868128,5.60638,2091.4,2091.1,29.838]
[1742837868506,0.8249,2091.4,2091.1,34.62015]
[1742837869235,4.78171,2091.3,2091.1,25.276]
[1742837869526,5.60659,2091.4,2091.2,4.562]
[1742837869729,4.78122,2091.6,2091.2,4.562]
[1742837869730,4.7813,2091.5,2091.2,4.562]
[1742837870363,4.78122,2091.6,2091.2,9.34388]
[1742837870515,4.78122,2091.6,2091.2,14.12564]
[1742837870702,4.78122,2091.6,2091.2,9.34376]
[1742837870908,4.78122,2091.6,2091.2,14.12555]
[1742837871121,4.78122,2091.6,2091.2,9.34376]
[1742837871629,4.78122,2091.6,2091.3,0.4603]
[1742837872344,7.78084,2091.7,2091.3,0.4603]
[1742837872507,4.78104,2091.6,2091.3,0.4603]
[1742837873108,4.78104,2091.6,2091.2,9.34376]
[1742837873509,9.56223,2091.6,2091.2,9.34376]
[1742837873909,4.78127,2091.5,2091.2,9.34376]
[1742837874342,9.56272,2091.5,2091.2,4.562]
[1742837874536,4.78149,2091.4,2091.2,4.562]
[1742837874739,5.55637,2091.5,2091.2,4.562]
[1742837875916,10.3378,2091.5,2091.2,4.562]
[1742837876427,11.6716,2091.5,2091.2,4.562]
[1742837876631,4.78149,2091.4,2091.2,4.562]
[1742837878539,4.78149,2091.4,2091.1,25.276]
[1742837878837,4.78149,2091.4,2091.2,4.562]
[1742837879042,4.78171,2091.3,2091.1,25.276]
[1742837879240,4.78171,2091.3,2091.2,4.562]
[1742837886317,4.78236,2091.1,2090.7,30.51936]
[1742837886524,4.78249,2091.0,2090.8,4.562]
[1742837887947,4.78262,2090.9,2090.8,4.562]
[1742837888335,4.78249,2091.0,2090.8,4.562]
[1742837889350,4.78262,2090.9,2090.8,4.562]
[1742837889929,4.78262,2090.9,2090.7,25.276]
[1742837889930,4.78285,2090.8,2090.7,25.276]
[1742837890128,4.78285,2090.8,2090.7,29.838]
[1742837892256,4.78262,2090.9,2090.7,29.838]
[1742837892660,9.56542,2090.9,2090.7,29.838]
[1742837892827,7.78247,2091.0,2090.7,29.838]
[1742837895022,3.0,2091.0,2090.7,34.62107]
[1742837895226,3.0,2091.1,2090.8,5.24304]
[1742837895529,3.0,2091.1,2090.8,10.02579]
[1742837895739,3.0,2091.1,2090.8,5.24304]
[1742837896959,9.56406,2091.2,2090.8,5.24304]
[1742837898332,4.78218,2091.1,2090.8,5.24304]
[1742837899558,4.78218,2091.1,2090.8,0.4603]
[1742837900364,4.78194,2091.2,2090.8,0.4603]
[1742837900365,4.78194,2091.2,2090.8,5.24313]
[1742837900546,4.78194,2091.2,2090.8,10.02583]
[1742837900747,9.56403,2091.2,2090.8,5.243]
[1742837901249,4.78223,2091.1,2090.8,0.4603]
[1742837903160,4.78251,2091.0,2090.7,25.276]
[1742837903361,4.78285,2090.8,2090.7,25.276]
[1742837903664,4.78285,2090.8,2090.7,29.838]
[1742837905249,4.78283,2090.9,2090.7,29.838]
[1742837905452,3.0,2090.9,2090.7,29.838]
[1742837905648,4.78241,2091.0,2090.7,30.2983]
[1742837906985,1.033507,2091.1,2090.7,4.562]
[1742837907187,5.3163607,2091.0,2090.7,4.562]
[1742837907857,1.033507,2091.1,2090.7,4.562]
[1742837908060,4.78221,2091.1,2090.8,0.4603]
[1742837908381,6.0867,2091.2,2090.8,5.24315]
[1742837908687,5.332,2091.2,2090.8,5.24315]
[1742837908993,0.55,2091.3,2090.8,0.4603]
[1742837909181,4.78236,2091.1,2090.8,0.4603]
[1742837909563,4.78233,2091.1,2090.8,0.4603]
[1742837910182,4.78194,2091.2,2090.8,5.24304]
[1742837910960,4.78194,2091.2,2090.7,9.345]
[1742837911281,4.78194,2091.2,2090.7,14.12792]
[1742837911491,8.33188,2091.3,2090.9,0.4603]
[1742837911791,3.0,2091.2,2090.9,0.4603]
[1742837912162,7.78207,2091.2,2090.9,0.4603]
[1742837912583,7.78207,2091.2,2090.7,9.80537]
[1742837913188,7.78207,2091.2,2090.8,4.78283]
[1742837914996,12.56422,2091.2,2090.7,9.80537]
[1742837915663,4.7822,2091.1,2090.7,9.80537]
[1742837917395,4.7822,2091.1,2090.7,9.80522]
[1742837917618,4.7822,2091.1,2090.7,14.5882]
[1742837918180,4.7822,2091.1,2090.7,9.80522]
[1742837918378,11.636596,2091.1,2090.7,5.0223]
[1742837918582,4.78247,2091.0,2090.7,5.0223]
[1742837919010,6.854216,2091.1,2090.7,9.80535]
[1742837919583,1.311416,2091.1,2090.7,14.58833]
[1742837919782,7.78196,2091.2,2090.7,9.80528]
[1742837920014,4.78219,2091.1,2090.7,9.80528]
[1742837920311,7.78201,2091.2,2090.7,14.58818]
[1742837920511,4.78225,2091.1,2090.7,9.8052]
[1742837921099,4.78243,2091.0,2090.7,5.0223]
[1742837921499,4.78225,2091.1,2090.7,5.0223]
[1742837921698,6.169731,2091.1,2090.7,5.0223]
[1742837922118,6.169731,2091.1,2090.7,9.80536]
[1742837922419,4.78249,2091.0,2090.7,5.0223]
[1742837923128,4.78263,2090.9,2090.7,5.0223]
[1742837923329,4.78249,2091.0,2090.7,5.0223]
[1742837923518,6.1777051,2091.0,2090.7,5.0223]
[1742837923720,4.78266,2090.9,2090.7,4.562]
[1742837924328,6.9492451,2091.0,2090.7,4.562]
[1742837924531,4.78266,2090.9,2090.7,4.562]
[1742837925313,6.9492851,2091.0,2090.7,4.562]
[1742837925494,6.1776851,2091.0,2090.7,4.562]
[1742837925717,4.78264,2090.9,2090.7,4.562]
[1742837926634,6.1776851,2091.0,2090.7,4.562]
[1742837927638,4.78271,2090.9,2090.7,4.562]
[1742837929034,5.87874951,2090.9,2090.7,4.562]
[1742837930042,1.09603951,2090.9,2090.7,4.562]
[1742837930246,4.7827,2090.9,2090.7,4.562]
[1742837930763,4.78247,2091.0,2090.7,4.562]
[1742837930964,3.0,2091.0,2090.7,4.562]
[1742837931122,3.0,2091.0,2090.8,0.4603]
[1742837932537,4.78159,2091.4,2091.0,4.78235]
[1742837932736,4.78159,2091.4,2091.1,0.4603]
[1742837932922,3.0,2091.3,2091.2,4.561]
[1742837933128,7.78171,2091.3,2091.2,4.561]
[1742837934129,3.0,2091.3,2091.2,4.561]
[1742837934324,5.55434,2091.6,2091.2,4.561]
[1742837934547,4.78076,2091.8,2091.2,9.34287]
[1742837934748,9.56189,2091.7,2091.2,9.34287]
[1742837935036,4.78092,2091.7,2091.2,9.34287]
[1742837935443,4.7811,2091.6,2091.2,4.561]
[1742837936532,4.7811,2091.6,2091.2,9.34294]
[1742837939352,5.33085,2091.7,2091.3,4.78171]
[1742837939558,4.78058,2091.8,2091.4,0.4603]
[1742837943173,4.78081,2091.7,2091.4,0.4603]
[1742837945245,4.7811,2091.6,2091.2,9.80308]
[1742837945446,4.78085,2091.7,2091.2,9.80308]
[1742837945646,4.78085,2091.7,2091.2,14.58489]
[1742837946270,6.171512,2091.8,2091.3,4.7817]
[1742837946473,6.171512,2091.8,2091.4,0.4603]
[1742837946977,4.78089,2091.7,2091.4,0.4603]
[1742837947669,6.171512,2091.8,2091.4,0.4603]
[1742837947874,4.78086,2091.7,2091.4,0.4603]
[1742837948667,9.56183,2091.7,2091.4,0.4603]
[1742837948867,4.78086,2091.7,2091.4,0.4603]
[1742837949076,4.78105,2091.6,2091.4,0.4603]
[1742837949268,4.78087,2091.7,2091.4,0.4603]
[1742837949877,9.56188,2091.7,2091.4,0.4603]
[1742837950081,4.78087,2091.7,2091.4,0.4603]
[1742837950883,4.78103,2091.6,2091.4,0.4603]
[1742837951056,4.78086,2091.7,2091.4,0.4603]
[1742837951258,9.56182,2091.7,2091.4,0.4603]
[1742837951456,4.78086,2091.7,2091.4,0.4603]
[1742837952954,9.56188,2091.7,2091.4,0.4603]
[1742837953477,4.78086,2091.7,2091.4,0.4603]
[1742837953683,4.78104,2091.6,2091.4,0.4603]
[1742837955488,4.78082,2091.7,2091.4,0.4603]
[1742837955779,9.56177,2091.7,2091.4,0.4603]
[1742837955986,4.78105,2091.6,2091.4,0.4603]
[1742837958202,4.78105,2091.6,2091.2,9.3428]
[1742837958356,4.78105,2091.6,2091.2,9.8031]
[1742837959761,4.78105,2091.6,2091.2,14.58492]
[1742837959961,9.56223,2091.6,2091.2,9.8031]
[1742837960658,11.73866,2091.9,2091.2,5.0213]
[1742837960659,4.78132,2091.5,2091.2,5.0213]
[1742837961608,4.78132,2091.5,2091.1,30.06402]
[1742837961889,4.78148,2091.4,2091.2,4.558]
[1742837964072,4.78148,2091.4,2091.1,25.282]
[1742837964279,4.78148,2091.4,2091.2,4.558]
[1742837966195,9.56267,2091.5,2091.2,4.558]
[1742837967464,4.7815,2091.4,2091.2,4.558]
[1742837967893,4.78126,2091.5,2091.2,4.558]
[1742837968073,9.56272,2091.5,2091.2,4.558]
[1742837970097,4.78154,2091.4,2091.2,4.558]
[1742837975708,7.78133,2091.5,2091.2,4.558]
[1742837975926,12.56279,2091.5,2091.2,4.558]
[1742837977523,5.54412,2091.4,2091.3,4.557]
[1742837978076,8.54412,2091.4,2091.3,4.557]
[1742837978611,8.54412,2091.4,2090.9,30.05748]
[1742837978612,4.78173,2091.3,2090.9,30.05748]
[1742837978817,4.78173,2091.3,2091.0,4.557]
[1742837980432,4.78196,2091.2,2091.1,4.557]
[1742837980730,4.78219,2091.1,2090.9,25.275]
[1742837980942,4.78219,2091.1,2091.0,4.557]
[1742837986844,5.56239,2091.1,2091.0,4.557]
[1742837987206,4.78217,2091.1,2091.0,4.557]
[1742837994445,4.78196,2091.2,2091.0,4.557]
[1742837994927,4.78217,2091.1,2091.0,4.557]
[1742838001347,4.78253,2091.0,2090.6,30.52157]
[1742838001575,9.56509,2091.0,2090.7,4.557]
[1742838002147,4.78218,2091.1,2090.7,14.123]
[1742838002348,4.78218,2091.1,2090.8,5.24313]
[1742838002566,4.78218,2091.1,2090.8,0.4603]
[1742838002949,0.802,2091.0,2090.6,0.4603]
[1742838003149,4.78338,2090.6,2090.4,0.4603]
[1742838003379,4.78311,2090.7,2090.5,4.557]
[1742838003880,6.16,2090.9,2090.6,5.24343]
[1742838004046,6.16,2090.9,2090.7,4.78293]
[1742838005254,6.16,2090.9,2090.6,10.02679]
[1742838006282,6.16,2090.9,2090.7,4.78306]
[1742838006450,6.16,2090.9,2090.7,4.78295]
[1742838007685,6.9142,2091.4,2090.9,4.78253]
[1742838007867,5.56764,2091.6,2091.1,4.78202]
[1742838008074,4.78127,2091.5,2091.0,9.79867]
[1742838008581,4.7815,2091.4,2091.0,9.79867]
[1742838009853,7.78133,2091.5,2091.0,9.79867]
[1742838010564,12.56277,2091.5,2091.0,9.79867]
[1742838010761,7.78133,2091.5,2091.0,14.58095]
[1742838010973,7.78133,2091.5,2091.0,9.79858]
[1742838011281,12.56277,2091.5,2091.0,9.79858]
[1742838011582,7.78133,2091.5,2091.0,9.79858]
[1742838012177,3.0,2091.5,2091.1,4.78209]
[1742838012552,3.0,2091.5,2091.0,9.79862]
[1742838012748,7.78133,2091.5,2091.0,9.79862]
[1742838012948,3.0,2091.5,2091.1,4.82979623]
[1742838013781,7.78127,2091.5,2091.1,4.78198]
[1742838013954,7.78127,2091.5,2091.0,9.79863]
[1742838015703,0.7522,2092.2,2091.1,0.4603]
[1742838015900,2.41968186,2092.3,2091.5,4.78111]
[1742838015901,0.7522,2091.9,2091.5,4.78111]
[1742838016203,3.0,2091.9,2091.6,4.556]
[1742838016990,3.0,2092.0,2091.6,4.556]
[1742838017159,6.16,2092.2,2091.8,5.24087]
[1742838018268,0.769,2092.3,2091.9,4.78021]
[1742838018577,8.54843,2092.3,2091.8,10.02128]
[1742838018891,4.78009,2092.1,2091.8,0.4603]
[1742838019093,5.258119,2092.0,2091.6,4.556]
[1742838019295,5.60826,2091.9,2091.6,4.556]
[1742838019523,10.38877,2091.9,2091.6,4.556]
[1742838020005,4.78059,2091.8,2091.6,4.556]
[1742838022012,4.7808,2091.7,2091.6,4.556]
[1742838022323,1.038919,2091.7,2091.6,4.555]
[1742838022476,4.78134,2091.5,2091.0,5.24263]
[1742838022674,5.58411,2091.6,2091.1,9.33714]
[1742838022871,7.78083,2091.7,2091.2,4.78186]
[1742838023292,7.78083,2091.7,2091.3,0.4603]
[1742838024201,3.0,2091.7,2091.3,5.24199]
[1742838024383,3.0,2091.7,2091.4,4.78133]
[1742838024777,3.0,2091.7,2091.3,5.24196]
[1742838025798,3.0,2091.7,2091.3,10.02354]
[1742838025997,6.16,2091.8,2091.4,4.78134]
[1742838026200,3.774,2092.0,2091.6,4.78089]
[1742838026508,4.78023,2092.0,2091.7,4.554]
[1742838027191,9.56053,2092.0,2091.7,4.554]
[1742838027399,4.78037,2091.9,2091.7,4.554]
[1742838028079,4.78014,2092.0,2091.7,4.554]
[1742838028312,12.56036,2092.0,2091.7,4.554]
[1742838028801,4.78036,2091.9,2091.7,4.554]
[1742838029581,4.7809,2091.7,2091.3,4.78163]
[1742838029821,4.7809,2091.7,2091.4,4.554]
[1742838030111,4.7814,2091.5,2091.0,4.78238]
[1742838030272,4.78159,2091.4,2091.1,4.554]
[1742838030476,5.5715,2091.5,2091.1,4.554]
[1742838030700,10.35298,2091.5,2091.1,4.554]
[1742838030893,4.78158,2091.4,2091.1,4.554]
[1742838037719,5.57136,2091.5,2091.1,9.33611]
[1742838039217,5.57136,2091.5,2091.1,4.554]
[1742838039817,5.57136,2091.5,2091.1,9.33616]
[1742838040013,4.78126,2091.5,2091.1,9.33616]
[1742838040387,4.78126,2091.5,2091.1,4.554]
[1742838040915,4.78126,2091.5,2091.1,9.33617]
[1742838041283,9.56268,2091.5,2091.1,4.554]
[1742838041488,4.78126,2091.5,2091.1,4.554]
[1742838042717,9.56268,2091.5,2091.1,4.554]
[1742838042913,9.5627,2091.5,2091.1,4.554]
[1742838043099,4.78126,2091.5,2091.1,4.554]
[1742838043704,9.56226,2091.6,2091.1,9.33605]
[1742838043913,4.78139,2091.5,2091.1,4.554]
[1742838044823,4.78139,2091.5,2091.1,9.33606]
[1742838045218,4.78139,2091.5,2091.1,4.554]
[1742838048223,9.56283,2091.5,2091.1,4.554]
[1742838048425,4.78139,2091.5,2091.1,4.554]
[1742838048728,4.78148,2091.4,2091.1,4.554]
[1742838049220,4.78148,2091.4,2090.9,25.275]
[1742838049221,4.78202,2091.2,2090.9,25.275]
[1742838049426,4.78202,2091.2,2091.0,4.553]
[1742838049634,10.36371,2091.3,2091.0,4.553]
[1742838050502,8.58182,2091.3,2091.0,4.553]
[1742838051530,0.55,2091.2,2091.0,4.553]
[1742838052453,5.33197,2091.2,2091.0,4.553]
[1742838054433,4.78244,2091.0,2090.7,25.277]
[1742838054632,4.78244,2091.0,2090.8,4.553]
[1742838056134,0.55,2091.2,2090.9,0.4603]
[1742838056313,0.55,2091.2,2090.9,5.24282]
[1742838056742,6.16,2091.5,2090.9,0.4603]
[1742838057037,8.33127,2091.5,2091.2,0.4603]
[1742838057241,8.33127,2091.5,2091.3,4.553]
[1742838057628,7.78127,2091.5,2091.3,4.553]
[1742838057824,0.55,2091.4,2091.3,4.553]
[1742838059442,3.0,2091.6,2091.3,4.553]
[1742838059741,7.78103,2091.6,2091.3,4.553]
[1742838059928,12.56227,2091.6,2091.3,4.553]
[1742838060117,5.33129,2091.5,2091.3,4.553]
[1742838063043,10.11271,2091.5,2091.3,4.553]
[1742838063226,5.33129,2091.5,2091.3,4.553]
[1742838063622,0.55,2091.5,2091.3,4.553]
[1742838063953,5.3313,2091.5,2091.3,4.553]
[1742838069255,10.11272,2091.5,2091.3,4.553]
[1742838069428,5.3313,2091.5,2091.3,4.553]
[1742838073262,10.11272,2091.5,2091.3,4.553]
[1742838073435,5.3313,2091.5,2091.3,4.553]
[1742838074251,3.0,2091.6,2091.3,4.553]
[1742838074449,7.78117,2091.6,2091.3,4.553]
[1742838074662,4.78134,2091.5,2091.3,4.553]
[1742838075055,7.78117,2091.6,2091.3,4.553]
[1742838075235,12.56235,2091.6,2091.3,4.553]
[1742838075427,4.78126,2091.5,2091.3,4.553]
[1742838075857,7.78114,2091.6,2091.3,4.553]
[1742838076064,4.78128,2091.5,2091.3,4.553]
[1742838079756,5.33217,2091.1,2091.0,25.276]
[1742838079951,6.11697,2091.1,2091.0,29.828]
[1742838080139,9.11697,2091.1,2091.0,25.276]
[1742838080334,9.11697,2091.1,2091.0,29.828]
[1742838084237,9.11697,2091.1,2091.0,4.552]
[1742838084439,11.601046,2091.1,2091.0,4.552]
[1742838085673,11.601046,2091.1,2090.2,26.81919468]
[1742838085674,0.759,2090.9,2090.2,26.81919468]
[1742838085873,4.78387,2090.4,2090.2,26.81919468]
[1742838086060,4.78387,2090.4,2090.3,4.552]
[1742838086585,4.784,2090.3,2090.2,25.278]
[1742838086787,5.334,2090.3,2090.2,29.83]
[1742838088169,5.334,2090.3,2090.2,25.278]
[1742838088485,5.334,2090.3,2090.2,29.83]
[1742838088636,5.334,2090.3,2090.2,25.278]
[1742838088838,5.334,2090.3,2090.2,29.83]
[1742838088839,9.824149,2090.3,2090.2,29.83]
[1742838089480,10.628849,2090.3,2090.2,29.831]
[1742838089891,10.628849,2090.3,2090.2,4.553]
[1742838090389,10.628849,2090.3,2090.1,0.01]
[1742838090390,6.13893,2090.2,2090.1,0.01]
[1742838091172,9.13893,2090.2,2090.1,0.01]
[1742838091371,11.7746249,2090.2,2090.1,0.01]
[1742838093291,8.33423,2090.2,2090.1,0.01]
[1742838094946,9.15723,2090.2,2090.1,0.01]
[1742838097493,8.33423,2090.2,2090.1,0.01]
[1742838105701,4.92681367,2090.3,2090.2,0.4603]
[1742838108701,7.78361,2090.5,2090.2,0.4603]
[1742838109802,3.0,2090.5,2090.2,0.4603]
[1742838110003,3.0,2090.5,2090.1,9.57872]
[1742838110004,10.94295,2090.8,2090.4,0.4603]
[1742838110307,3.0,2090.7,2090.5,4.553]
[1742838110706,6.16,2090.8,2090.5,4.553]
[1742838111024,0.55,2090.8,2090.6,0.4603]
[1742838111685,3.0,2090.9,2090.6,5.24349]
[1742838111893,4.78223,2091.1,2090.7,5.24323]
[1742838112096,4.78223,2091.1,2090.7,10.02622]
[1742838112725,5.33199,2091.2,2090.8,4.78283]
[1742838112941,5.33199,2091.2,2090.9,0.4603]
[1742838113114,5.33199,2091.2,2091.0,4.553]
[1742838113291,10.1141,2091.2,2091.0,4.553]
[1742838113629,4.78217,2091.1,2091.0,4.553]
[1742838113812,5.33195,2091.2,2091.0,4.553]
[1742838114189,5.33202,2091.2,2091.0,4.553]
[1742838115084,3.0,2091.6,2091.0,4.553]
[1742838115085,6.16,2091.8,2091.2,0.4603]
[1742838115414,4.78077,2091.8,2091.3,4.78159]
[1742838115638,0.55,2091.7,2091.3,4.78159]
[1742838116083,5.33088,2091.7,2091.3,4.78159]
[1742838117497,0.55,2091.7,2091.3,4.78159]
[1742838117802,0.55,2091.7,2091.4,0.4603]
[1742838118003,0.55,2091.7,2091.5,4.551]
[1742838119019,4.78077,2091.8,2091.5,4.551]
[1742838119323,3.0,2091.8,2091.5,9.33222]
[1742838119490,4.77993,2092.1,2091.6,0.4603]
[1742838119695,4.77993,2092.1,2091.6,5.24118]
[1742838119696,3.0,2092.0,2091.6,5.24118]
[1742838119897,7.78013,2092.0,2091.6,5.24118]
[1742838120096,4.78013,2092.0,2091.6,5.24118]
[1742838122294,0.55,2092.0,2091.7,0.4603]
[1742838122499,0.55,2092.0,2091.7,5.24093]
[1742838122799,0.55,2092.1,2091.7,5.24093]
[1742838123205,10.11007,2092.1,2091.7,0.4603]
[1742838123415,5.32999,2092.1,2091.7,0.4603]
[1742838123629,4.78011,2092.0,2091.7,0.4603]
[1742838124219,5.32999,2092.1,2091.7,0.4603]
[1742838124603,5.32999,2092.1,2091.7,5.24109]
[1742838125227,5.32999,2092.1,2091.7,5.28889269]
[1742838125433,10.11004,2092.1,2091.7,5.24109]
[1742838125636,4.78015,2092.0,2091.7,0.4603]
[1742838127013,10.11003,2092.1,2091.7,0.4603]
[1742838127339,4.78011,2092.0,2091.7,0.4603]
[1742838129237,5.32999,2092.1,2091.7,0.50810276]
[1742838129431,10.11003,2092.1,2091.7,0.50810271]
[1742838129734,5.32999,2092.1,2091.7,0.4603]
[1742838130120,5.32999,2092.1,2091.7,0.50810271]